bitfinex/quotes_BTCUSD_20251019
["timestamp","ask_amount","ask_price","bid_price","bid_amount"]
[1760890622694,2.1260922,108520.0,108510.0,0.02770931]
[1760890622910,2.31039002,108520.0,108510.0,0.02770931]
[1760890630009,1.83638379,108500.0,108490.0,0.03618228]
[1760890638044,0.18433179,108500.0,108490.0,0.03618228]
[1760890640111,2.29210142,108510.0,108500.0,0.03618228]
[1760890640342,2.29210142,108510.0,108480.0,0.00140614]
[1760890640343,0.18434878,108490.0,108480.0,0.00140614]
[1760890640550,2.30956163,108490.0,108480.0,0.00140614]
[1760890640723,2.33572755,108490.0,108480.0,0.00140614]
[1760890640932,2.30956163,108490.0,108480.0,0.00140614]
[1760890641560,2.30956163,108490.0,108480.0,0.00154248]
[1760890642123,2.1011963,108490.0,108480.0,0.00154248]
[1760890642351,2.28554508,108490.0,108480.0,0.00154248]
[1760890645314,1.96956163,108490.0,108480.0,0.00154248]
[1760890646339,1.77026363,108490.0,108480.0,0.00154248]
[1760890646754,1.75302278,108490.0,108480.0,0.00154248]
[1760890649584,1.63710278,108490.0,108480.0,0.00154248]
[1760890649913,1.75302278,108490.0,108480.0,0.00154248]
[1760890653022,2.09302278,108490.0,108480.0,0.00154248]
[1760890663127,2.11021686,108490.0,108480.0,0.00154248]
[1760890666473,1.91908133,108490.0,108480.0,0.00154248]
[1760890666675,1.91908186,108490.0,108480.0,0.00154248]
[1760890672448,1.91900186,108490.0,108480.0,0.00154248]
[1760890672877,1.80316186,108490.0,108480.0,0.00154248]
[1760890673076,1.91900186,108490.0,108480.0,0.00154248]
[1760890685863,1.80316186,108490.0,108480.0,0.00154248]
[1760890686083,1.91896186,108490.0,108480.0,0.00154248]
[1760890690377,1.91896186,108490.0,108480.0,0.02925867]
[1760890695284,1.46316186,108490.0,108480.0,0.02925867]
[1760890695491,0.01719408,108490.0,108480.0,0.24980673]
[1760890695694,1.44595578,108500.0,108490.0,0.03618228]
[1760890695901,0.18434878,108490.0,108480.0,0.02925867]
[1760890696103,1.44596778,108490.0,108480.0,0.00154248]
[1760890696313,1.44596778,108490.0,108480.0,0.0292578]
[1760890699027,1.261619,108490.0,108480.0,0.24980586]
[1760890701956,0.18433296,108500.0,108490.0,0.03618228]
[1760890702574,0.18433296,108500.0,108490.0,0.06389474]
[1760890702931,0.18433179,108500.0,108490.0,0.24824352]
[1760890703121,0.18433179,108500.0,108490.0,0.06389474]
[1760890703673,0.18433179,108500.0,108490.0,0.24824352]
[1760890704477,1.261619,108500.0,108490.0,0.36404352]
[1760890709206,0.18433179,108500.0,108490.0,0.36404352]
[1760890709818,0.18433179,108500.0,108490.0,0.17969474]
[1760890712842,0.18433179,108500.0,108490.0,0.06389474]
[1760890713085,1.44595079,108500.0,108490.0,0.17969474]
[1760890715400,1.44595079,108500.0,108490.0,0.06389474]
[1760890722724,1.44595079,108500.0,108490.0,0.08525227]
[1760890722926,1.44595079,108500.0,108490.0,0.24824352]
[1760890722927,1.261619,108500.0,108490.0,0.24824352]
[1760890723541,0.18433179,108500.0,108490.0,0.24824352]
[1760890724296,0.18433179,108500.0,108490.0,0.06389474]
[1760890731900,0.52580133,108510.0,108500.0,0.03618228]
[1760890732191,1.81327746,108510.0,108500.0,0.04618998]
[1760890732626,1.81327746,108510.0,108500.0,0.06389277]
[1760890733030,1.81327617,108510.0,108500.0,0.06389277]
[1760890734924,1.80465756,108510.0,108500.0,0.06389277]
[1760890736117,1.81327564,108510.0,108500.0,0.02771049]
[1760890742194,1.90768652,108510.0,108500.0,0.02771049]
[1760890747497,1.90768964,108510.0,108500.0,0.02771049]
[1760890751463,1.90769695,108510.0,108500.0,0.02771049]
[1760890754985,1.73111136,108510.0,108500.0,0.02771049]
[1760890755193,1.91545721,108510.0,108500.0,0.02771049]
[1760890766139,1.82104633,108510.0,108500.0,0.02771049]
[1760890774759,1.47183059,108510.0,108500.0,0.02771049]
[1760890774988,1.48104633,108510.0,108500.0,0.02771049]
[1760890776803,1.82104633,108510.0,108500.0,0.02771049]
[1760890797090,1.82106105,108510.0,108500.0,0.02771049]
[1760890801625,1.93678105,108510.0,108500.0,0.02771049]
[1760890805310,1.93679255,108510.0,108500.0,0.02771049]
[1760890806785,1.82107255,108510.0,108500.0,0.02771049]
[1760890806938,1.93679255,108510.0,108500.0,0.02771049]
[1760890814308,1.91953411,108510.0,108500.0,0.02771049]
[1760890814532,1.93679385,108510.0,108500.0,0.02771049]
[1760890834156,2.03120473,108510.0,108500.0,0.02771049]
[1760890834557,2.0585009,108510.0,108500.0,0.02771049]
[1760890835678,2.0595009,108510.0,108500.0,0.02771049]
[1760890835892,2.0605009,108510.0,108500.0,0.02771049]
[1760890837936,0.52434878,108490.0,108480.0,0.00154248]
[1760890838141,3.65732852,108490.0,108480.0,0.00154248]
[1760890838451,3.65732852,108490.0,108480.0,0.02925949]
[1760890840281,3.7517394,108490.0,108480.0,0.02925949]
[1760890840489,3.77968835,108490.0,108480.0,0.02925949]
[1760890840722,3.91360332,108490.0,108480.0,0.00154248]
[1760890840928,3.88565437,108490.0,108480.0,0.00154248]
[1760890841346,3.92337588,108490.0,108480.0,0.00154248]
[1760890841565,3.82996946,108490.0,108480.0,0.00154248]
[1760890841989,3.79807427,108490.0,108480.0,0.00154248]
[1760890842214,3.79907427,108490.0,108480.0,0.00154248]
[1760890842428,3.80007427,108490.0,108480.0,0.00154248]
[1760890843176,3.79907427,108490.0,108480.0,0.00154248]
[1760890843580,3.80007427,108490.0,108480.0,0.00154248]
[1760890845543,3.80011427,108490.0,108480.0,0.00154248]
[1760890849120,3.80011427,108490.0,108480.0,1e-08]
[1760890849678,3.82436962,108490.0,108480.0,1e-08]
[1760890850630,0.18439977,108460.0,108450.0,0.0502]
[1760890850990,3.50614883,108460.0,108450.0,0.05024918]
[1760890851199,3.41174241,108460.0,108450.0,0.05169217]
[1760890851329,3.43947108,108460.0,108450.0,0.05169217]
[1760890851533,3.46569535,108460.0,108450.0,0.05169217]
[1760890853285,3.46669535,108460.0,108450.0,0.05169217]
[1760890853724,3.46769535,108460.0,108450.0,0.05169217]
[1760890854278,3.91210176,108460.0,108450.0,0.05169217]
[1760890855715,3.80769535,108460.0,108450.0,0.05169217]
[1760890855983,3.59602754,108460.0,108450.0,0.05169217]
[1760890856167,3.78042731,108460.0,108450.0,0.05169217]
[1760890856341,3.7904273,108460.0,108450.0,0.05169217]
[1760890857415,3.7904273,108460.0,108440.0,0.0002]
[1760890857621,3.63540145,108450.0,108440.0,0.00024928]
[1760890857821,3.64495564,108450.0,108440.0,0.00024928]
[1760890858052,3.67268831,108450.0,108440.0,0.00024928]
[1760890859286,3.67368831,108450.0,108440.0,0.00024928]
[1760890860027,3.81571258,108450.0,108440.0,0.00024928]
[1760890860225,3.69991258,108450.0,108440.0,0.00024928]
[1760890860466,3.81571258,108450.0,108440.0,0.00024928]
[1760890860678,3.81568884,108450.0,108440.0,0.00024928]
[1760890860836,3.81668884,108450.0,108440.0,0.00024928]
[1760890862083,3.70088884,108450.0,108440.0,0.00024928]
[1760890862421,3.67466457,108450.0,108440.0,0.00024928]
[1760890862776,3.79046457,108450.0,108440.0,0.00024928]
[1760890863166,3.67466457,108450.0,108440.0,0.00024928]
[1760890863370,3.68324474,108450.0,108440.0,0.00060109]
[1760890863717,3.79904474,108450.0,108440.0,0.00060109]
[1760890863922,5.11505618,108450.0,108440.0,0.00060109]
[1760890865255,6.50810177,108450.0,108440.0,0.00060109]
[1760890865633,6.34149189,108450.0,108440.0,0.00060109]
[1760890865835,6.45729189,108450.0,108440.0,0.00060109]
[1760890867339,5.14128045,108450.0,108440.0,0.00060109]
[1760890867582,5.02548045,108450.0,108440.0,0.00060109]
[1760890867756,5.14128045,108450.0,108440.0,0.00060109]
[1760890868142,5.23568687,108450.0,108440.0,0.00060109]
[1760890868344,5.24054357,108450.0,108440.0,0.00060109]
[1760890869444,5.14613715,108450.0,108440.0,0.00060109]
[1760890870730,5.11840448,108450.0,108440.0,0.00060109]
[1760890872699,5.11640448,108450.0,108440.0,0.00060109]
[1760890872928,5.11740448,108450.0,108440.0,0.00060109]
[1760890873160,5.11840448,108450.0,108440.0,0.00060109]
[1760890873394,5.00260448,108450.0,108440.0,0.00060109]
[1760890873630,5.11840448,108450.0,108440.0,0.00060109]
[1760890873864,5.00260448,108450.0,108440.0,0.00060109]
[1760890874111,5.11840448,108450.0,108440.0,0.00060109]
[1760890874360,4.563934,108450.0,108440.0,0.00060109]
[1760890874598,4.65350973,108450.0,108440.0,0.00060109]
[1760890874834,4.53770973,108450.0,108440.0,0.00060109]
[1760890875042,4.65350973,108450.0,108440.0,0.00060109]
[1760890875292,4.52770974,108450.0,108440.0,0.00060109]
[1760890875530,4.64350974,108450.0,108440.0,0.00060109]
[1760890876256,4.52770974,108450.0,108440.0,0.00060109]
[1760890876461,4.20483926,108450.0,108440.0,0.00060109]
[1760890877112,4.08903926,108450.0,108440.0,0.00060109]
[1760890877293,4.20483926,108450.0,108440.0,0.00060109]
[1760890877613,4.08903926,108450.0,108440.0,0.00060109]
[1760890877755,4.20483926,108450.0,108440.0,0.00060109]
[1760890878468,4.08903926,108450.0,108440.0,0.00060109]
[1760890878669,4.20483926,108450.0,108440.0,0.00060109]
[1760890879062,4.08903926,108450.0,108440.0,0.00060109]
[1760890879233,4.20483926,108450.0,108440.0,0.00060109]
[1760890879700,4.08903926,108450.0,108440.0,0.00060109]
[1760890880513,4.20483926,108450.0,108440.0,0.00060109]
[1760890880743,4.08903926,108450.0,108440.0,0.00060109]
[1760890880961,4.20483926,108450.0,108440.0,0.00060109]
[1760890881892,4.08903926,108450.0,108440.0,0.00060109]
[1760890882029,4.20483926,108450.0,108440.0,0.00060109]
[1760890882463,4.08903926,108450.0,108440.0,0.00060109]
[1760890882658,4.20483926,108450.0,108440.0,0.00060109]
[1760890883106,4.08903926,108450.0,108440.0,0.00060109]
[1760890883333,4.20483926,108450.0,108440.0,0.00060109]
[1760890883948,4.08903926,108450.0,108440.0,0.00060109]
[1760890884295,3.76616878,108450.0,108440.0,0.00060109]
[1760890884495,4.20001894,108450.0,108440.0,0.00060109]
[1760890884702,3.64554846,108450.0,108440.0,0.00060109]
[1760890884970,4.20001894,108450.0,108440.0,0.00060109]
[1760890885172,4.08421894,108450.0,108440.0,0.00060109]
[1760890885573,4.20001894,108450.0,108440.0,0.00060109]
[1760890885709,4.08421894,108450.0,108440.0,0.00060109]
[1760890885913,4.20001894,108450.0,108440.0,0.00060109]
[1760890886147,4.08421894,108450.0,108440.0,0.00060109]
[1760890886299,3.64554846,108450.0,108440.0,0.00060109]
[1760890886499,4.20001894,108450.0,108440.0,0.00060109]
[1760890887517,3.76134846,108450.0,108440.0,0.00060109]
[1760890887860,4.20001894,108450.0,108440.0,0.00060109]
[1760890892503,3.76134846,108450.0,108440.0,0.00060109]
[1760890892701,4.08421894,108450.0,108440.0,0.00060109]
[1760890892904,4.20001894,108450.0,108440.0,0.00060109]
[1760890894206,3.76134846,108450.0,108440.0,0.00060109]
[1760890894419,4.20001894,108450.0,108440.0,0.00060109]
[1760890895191,3.76137854,108450.0,108440.0,0.00060109]
[1760890895390,4.20004902,108450.0,108440.0,0.00060109]
[1760890896444,3.65834939,108450.0,108440.0,0.00060109]
[1760890896635,3.65834939,108450.0,108440.0,0.43927157]
[1760890896980,3.54254939,108450.0,108440.0,0.00060109]
[1760890897205,3.65834939,108450.0,108440.0,0.00060109]
[1760890899300,3.31834939,108450.0,108440.0,0.43927157]
[1760890902110,3.31834939,108450.0,108440.0,0.00060109]
[1760890904999,3.13054298,108450.0,108440.0,0.00060109]
[1760890905198,3.31495976,108450.0,108440.0,0.00060109]
[1760890915140,3.1596165,108450.0,108440.0,0.00060109]
[1760890917419,3.0438165,108450.0,108440.0,0.00060109]
[1760890917617,3.1596165,108450.0,108440.0,0.00060109]
[1760890918088,3.0438165,108450.0,108440.0,0.00060109]
[1760890918268,3.1596165,108450.0,108440.0,0.00060109]
[1760890919290,3.1595765,108450.0,108440.0,0.00060109]
[1760890920733,3.0438165,108450.0,108440.0,0.00060109]
[1760890920941,3.1595765,108450.0,108440.0,0.00060109]
[1760890921469,3.0438165,108450.0,108440.0,0.00060109]
[1760890921669,2.85939972,108450.0,108440.0,0.67039026]
[1760890921844,0.002,108450.0,108440.0,0.65958151]
[1760890922007,0.002,108450.0,108440.0,0.68730383]
[1760890922409,0.002,108450.0,108440.0,0.78171471]
[1760890922619,0.002,108450.0,108440.0,0.34335035]
[1760890922856,0.002,108450.0,108440.0,0.78171471]
[1760890923016,0.002,108450.0,108440.0,0.89747471]
[1760890927858,0.002,108450.0,108440.0,1.33583907]
[1760890930344,0.002,108450.0,108440.0,1.97583907]
[1760890930548,0.00144276,108480.0,108470.0,0.18438277]
[1760890930961,0.00144276,108480.0,108470.0,0.62274713]
[1760890931106,0.00144276,108480.0,108470.0,0.65046166]
[1760890932134,0.00144276,108480.0,108470.0,0.65146166]
[1760890933110,0.00144276,108480.0,108470.0,0.65246166]
[1760890933810,0.00144276,108480.0,108470.0,0.74687254]
[1760890934824,0.02508366,108480.0,108470.0,0.74687254]
[1760890936481,0.02508366,108480.0,108470.0,0.89477254]
[1760890940926,0.02508366,108480.0,108470.0,0.45640818]
[1760890941132,0.02508366,108480.0,108470.0,0.89477254]
[1760890941942,0.21706701,108480.0,108470.0,0.17761453]
[1760890942148,3.55408436,108480.0,108470.0,0.1499]
[1760890942360,4.19002998,108480.0,108470.0,0.002]
[1760890942562,3.75166562,108480.0,108470.0,0.002]
[1760890942766,3.77788989,108480.0,108470.0,0.001]
[1760890942986,3.77788989,108480.0,108470.0,0.43936436]
[1760890942987,3.04028924,108480.0,108470.0,0.43936436]
[1760890943129,3.32324606,108480.0,108470.0,0.47554664]
[1760890943336,3.32324606,108480.0,108470.0,0.47454664]
[1760890943953,3.32328606,108480.0,108470.0,0.65892941]
[1760890944349,3.13892028,108480.0,108470.0,0.65892941]
[1760890944575,0.13892028,108480.0,108470.0,0.65892941]
[1760890944781,0.13992028,108480.0,108470.0,0.65892941]
[1760890945211,0.13892028,108480.0,108470.0,0.65892941]
[1760890945766,0.33090363,108480.0,108470.0,0.47454664]
[1760890946013,0.32332606,108480.0,108470.0,0.47454664]
[1760890947875,0.20748606,108480.0,108470.0,0.47454664]
[1760890948080,0.20748606,108480.0,108470.0,0.65892941]
[1760890948314,0.32328606,108480.0,108470.0,0.65892941]
[1760890948894,0.13892028,108480.0,108470.0,0.65892941]
[1760890949400,0.02312028,108480.0,108470.0,0.65892941]
[1760890949610,0.1158,108480.0,108470.0,0.65892941]
[1760890950078,0.30016578,108480.0,108470.0,0.65892941]
[1760890950460,0.18436578,108480.0,108470.0,0.65892941]
[1760890950610,0.30016578,108480.0,108470.0,0.65892941]
[1760890950815,0.18436578,108480.0,108470.0,0.65892941]
[1760890951059,0.30016578,108480.0,108470.0,0.65892941]
[1760890951464,0.30016578,108480.0,108470.0,0.47454664]
[1760890951980,0.32428152,108480.0,108470.0,0.47454664]
[1760890952336,0.34150211,108480.0,108470.0,0.47454664]
[1760890957455,0.34150211,108480.0,108470.0,0.65892941]
[1760890959262,0.22570211,108480.0,108470.0,0.65892941]
[1760890959474,0.34154211,108480.0,108470.0,0.65892941]
[1760890959841,0.15717633,108480.0,108470.0,0.65892941]
[1760890960681,0.34154211,108480.0,108470.0,0.65892941]
[1760890961231,0.34154211,108480.0,108470.0,0.65992941]
[1760890962587,0.34154211,108480.0,108470.0,0.66092941]
[1760890962791,0.34154211,108480.0,108470.0,1.09849771]
[1760890963187,0.22570211,108480.0,108470.0,1.09849771]
[1760890963387,0.34150211,108480.0,108470.0,1.09849771]
[1760890964970,0.22570211,108480.0,108470.0,1.09849771]
[1760890965425,0.34150211,108480.0,108470.0,1.09849771]
[1760890965786,0.22570211,108480.0,108470.0,1.24639771]
[1760890965986,0.34150211,108480.0,108470.0,1.24639771]
[1760890966246,0.22570211,108480.0,108470.0,1.24639771]
[1760890966396,0.32428152,108480.0,108470.0,1.24639771]
[1760890966608,0.20848152,108480.0,108470.0,1.24639771]
[1760890966932,0.32428152,108480.0,108470.0,1.24639771]
[1760890968148,0.20848152,108480.0,108470.0,1.24639771]
[1760890968304,0.20848152,108480.0,108470.0,1.26775524]
[1760890968506,0.32428152,108480.0,108470.0,1.24639771]
[1760890968905,0.20848152,108480.0,108470.0,1.24639771]
[1760890969113,0.32428152,108480.0,108470.0,1.24639771]
[1760890974223,0.13991574,108480.0,108470.0,1.24639771]
[1760890974416,0.13991574,108480.0,108470.0,1.26775524]
[1760890974663,0.13991574,108480.0,108470.0,1.24639771]
[1760890975916,0.13991574,108480.0,108470.0,1.77877492]
[1760890976331,0.13991574,108480.0,108470.0,1.80648863]
[1760890977128,0.13991574,108480.0,108470.0,1.3685223]
[1760890978161,0.02411574,108480.0,108470.0,1.3685223]
[1760890978362,3.18435283,108490.0,108480.0,0.03618228]
[1760890978698,0.31736686,108490.0,108480.0,1.06001494]
[1760890979454,0.30011283,108490.0,108480.0,1.06001494]
[1760890979840,0.31736634,108490.0,108480.0,1.06001494]
[1760890981109,0.35497587,108490.0,108480.0,1.06001494]
[1760890981332,0.33772236,108490.0,108480.0,1.06001494]
[1760890983638,0.35497466,108490.0,108480.0,1.06001494]
[1760890984076,0.35532624,108490.0,108480.0,1.06001494]
[1760890985081,0.35532627,108490.0,108480.0,1.06001494]
[1760890985311,3.35532627,108490.0,108480.0,1.06001494]
[1760890992561,3.35532627,108490.0,108480.0,1.24438072]
[1760890992788,3.35532627,108490.0,108480.0,1.68234705]
[1760890992930,3.33807394,108490.0,108480.0,1.68234705]
[1760890993333,3.22231394,108490.0,108480.0,1.68234705]
[1760890993535,0.33803394,108490.0,108480.0,1.68234705]
[1760890993913,0.33802989,108490.0,108480.0,1.68234705]
[1760890994758,0.33802989,108490.0,108480.0,1.49798127]
[1760890995283,0.33802989,108490.0,108480.0,1.35008127]
[1760890995426,0.33802989,108490.0,108480.0,0.91211494]
[1760890995642,0.33802989,108490.0,108480.0,1.09648072]
[1760890996243,0.15368111,108490.0,108480.0,1.09648072]
[1760890996519,0.15368111,108490.0,108480.0,1.53444705]
[1760890997310,0.03796111,108490.0,108480.0,1.53444705]
[1760890997522,0.33802989,108490.0,108480.0,1.53444705]
[1760890999223,0.15368111,108490.0,108480.0,1.53444705]
[1760890999932,0.33802989,108490.0,108480.0,1.53444705]
[1760891001015,0.15368111,108490.0,108480.0,1.53444705]
[1760891001205,0.33802989,108490.0,108480.0,1.53444705]
[1760891007222,0.15368111,108490.0,108480.0,1.53444705]
[1760891007552,0.15368111,108490.0,108480.0,1.09648072]
[1760891007883,0.15368111,108490.0,108480.0,1.11783825]
[1760891008084,0.15368111,108490.0,108480.0,1.09648072]
[1760891009504,0.15368111,108490.0,108480.0,1.62885793]
[1760891010022,0.15368111,108490.0,108480.0,1.1908916]
[1760891011084,0.33802989,108490.0,108480.0,0.31495894]
[1760891011282,0.33802989,108490.0,108480.0,1.1908916]
[1760891015675,0.26939918,108490.0,108480.0,1.1908916]
[1760891018325,0.30739465,108490.0,108480.0,1.1908916]
[1760891018558,0.30739465,108490.0,108480.0,1.3387916]
[1760891022453,0.30739465,108490.0,108480.0,0.46285894]
[1760891022655,0.15371547,108490.0,108480.0,0.46285894]
[1760891022865,0.15371547,108490.0,108480.0,1.33860372]
[1760891027427,0.33806425,108490.0,108480.0,1.33860372]
[1760891028046,0.33806425,108490.0,108480.0,0.90073133]
[1760891030256,0.33806425,108490.0,108480.0,0.75283133]
[1760891030437,0.33806425,108490.0,108480.0,0.47405467]
[1760891030581,3.33806425,108490.0,108480.0,0.47405467]
[1760891033473,3.33806425,108490.0,108480.0,0.03618228]
[1760891033652,3.33806425,108490.0,108480.0,0.47405467]
[1760891036070,3.33806425,108490.0,108480.0,0.62195467]
[1760891037423,3.33806425,108490.0,108480.0,0.6433122]
[1760891037573,3.33806425,108490.0,108480.0,0.62195467]
[1760891039765,3.33806425,108490.0,108480.0,0.80632045]
[1760891040519,3.15371547,108490.0,108480.0,1.24419284]
[1760891041166,3.03799547,108490.0,108480.0,1.24419284]
[1760891041388,0.03799547,108490.0,108480.0,1.09629284]
[1760891041585,0.11572,108490.0,108480.0,1.09629284]
[1760891041823,0.19358034,108510.0,108490.0,0.18434878]
[1760891042033,3.21960743,108510.0,108500.0,0.43787239]
[1760891042239,3.37228401,108510.0,108500.0,0.43787239]
[1760891042715,0.36365757,108510.0,108500.0,0.62220418]
[1760891043039,0.36460777,108510.0,108500.0,0.18433179]
[1760891043255,0.34735489,108510.0,108500.0,0.62220418]
[1760891043643,0.34635489,108510.0,108500.0,0.62220418]
[1760891044257,0.34635489,108510.0,108500.0,0.43787239]
[1760891046936,0.34635489,108510.0,108500.0,0.62220418]
[1760891047603,0.34705789,108510.0,108500.0,0.62220418]
[1760891047805,0.27964853,108510.0,108500.0,0.62220418]
[1760891048018,0.28886427,108510.0,108500.0,0.62220418]
[1760891048222,0.32724188,108510.0,108500.0,0.62220418]
[1760891049147,0.03908061,108510.0,108500.0,0.62220418]
[1760891049385,0.15480061,108510.0,108500.0,0.62220418]
[1760891050753,0.15480061,108510.0,108500.0,0.65838646]
[1760891051627,0.15480061,108510.0,108500.0,0.68609497]
[1760891051931,0.15480061,108510.0,108500.0,0.7074525]
[1760891052097,0.03908061,108510.0,108500.0,0.68609497]
[1760891052513,0.03908061,108510.0,108500.0,0.68709497]
[1760891052892,0.03908061,108510.0,108500.0,0.68809497]
[1760891053893,0.03908061,108510.0,108500.0,1.22037824]
[1760891054098,0.03908061,108510.0,108500.0,1.33609824]
[1760891054846,0.000703,108510.0,108500.0,1.33609824]
[1760891057321,0.000703,108510.0,108500.0,0.46035346]
[1760891057549,0.000703,108510.0,108500.0,1.33609824]
[1760891060863,0.000743,108510.0,108500.0,1.33609824]
[1760891062910,0.000743,108510.0,108500.0,1.33409824]
[1760891063222,0.000743,108510.0,108500.0,1.33509824]
[1760891063369,0.000743,108510.0,108500.0,1.33609824]
[1760891065394,0.000743,108510.0,108500.0,1.48399824]
[1760891077097,0.000743,108510.0,108500.0,1.67609824]
[1760891077492,0.03725413,108540.0,108530.0,0.03618228]
[1760891077695,0.03774687,108540.0,108530.0,0.56846555]
[1760891078044,0.03774687,108540.0,108530.0,0.78044516]
[1760891078228,0.04536444,108540.0,108530.0,0.06388105]
[1760891078486,3.04536444,108540.0,108530.0,0.06388105]
[1760891078643,3.06358431,108540.0,108530.0,0.06388105]
[1760891078846,3.06358431,108540.0,108530.0,0.06488105]
[1760891080829,3.10178929,108540.0,108530.0,0.06488105]
[1760891082759,3.10178929,108540.0,108530.0,0.5024894]
[1760891083115,3.1028434,108540.0,108530.0,0.6493894]
[1760891083316,3.2185234,108540.0,108530.0,0.21178105]
[1760891085288,3.2185234,108540.0,108530.0,0.17559877]
[1760891087509,3.65613175,108540.0,108530.0,0.17559877]
[1760891087728,3.2185234,108540.0,108530.0,0.17559877]
[1760891087974,3.2185234,108540.0,108530.0,0.1479]
[1760891088740,3.65614588,108540.0,108530.0,0.1479]
[1760891088936,3.18428084,108530.0,108520.0,0.02770462]
[1760891089167,3.21013241,108530.0,108520.0,0.02770462]
[1760891094339,3.21083521,108530.0,108520.0,0.02770462]
[1760891095711,3.2022086,108530.0,108520.0,0.02770462]
[1760891096139,3.18498364,108530.0,108520.0,0.02770462]
[1760891096269,3.20222934,108530.0,108520.0,0.02770462]
[1760891096689,3.18498364,108530.0,108520.0,0.02770462]
[1760891097776,3.18498364,108530.0,108520.0,0.46531297]
[1760891100899,3.18498364,108530.0,108520.0,0.02770462]
[1760891101258,3.18498364,108530.0,108520.0,0.46531297]
[1760891102152,3.20223671,108530.0,108520.0,0.46531297]
[1760891102661,3.18498364,108530.0,108520.0,0.46531297]
[1760891102899,3.20223449,108530.0,108520.0,0.46531297]
[1760891103820,3.20223449,108530.0,108520.0,0.02770462]
[1760891103996,3.20223399,108530.0,108520.0,0.46531297]
[1760891111611,3.20223399,108530.0,108520.0,0.43760835]
[1760891112916,0.18429782,108520.0,108510.0,0.39610136]
[1760891113039,0.29997782,108520.0,108510.0,0.83370971]
[1760891114282,0.29997782,108520.0,108510.0,0.83470971]
[1760891116706,0.29997782,108520.0,108510.0,0.39710136]
[1760891116919,0.29997782,108520.0,108510.0,0.83470971]
[1760891118530,0.30032925,108520.0,108510.0,0.83470971]
[1760891120517,0.30032925,108520.0,108510.0,1.08800404]
[1760891122101,0.31760732,108520.0,108510.0,1.08800404]
[1760891122538,0.31760732,108520.0,108510.0,0.65039569]
[1760891123265,0.31760732,108520.0,108510.0,1.08800404]
[1760891123698,0.31760732,108520.0,108510.0,0.65039569]
[1760891125138,3.31760732,108520.0,108510.0,0.65039569]
[1760891126406,3.31760732,108520.0,108510.0,0.64939569]
[1760891126849,3.31760732,108520.0,108510.0,0.21178734]
[1760891127023,3.31760732,108520.0,108510.0,0.06388734]
[1760891127173,3.31760732,108520.0,108510.0,0.50149569]
[1760891128362,3.31760732,108520.0,108510.0,0.46531341]
[1760891128573,3.31760732,108520.0,108510.0,0.43760835]
[1760891128771,3.32624137,108520.0,108510.0,0.43760835]
[1760891129060,0.1843148,108510.0,108500.0,0.06388936]
[1760891129290,0.1843148,108510.0,108500.0,0.93910606]
[1760891129831,0.20157841,108510.0,108500.0,0.06388936]
[1760891130059,0.20157841,108510.0,108500.0,0.43760835]
[1760891130060,3.20157841,108510.0,108500.0,0.43760835]
[1760891130762,3.20157841,108510.0,108500.0,0.43860835]
[1760891131006,3.20157841,108510.0,108500.0,0.43760835]
[1760891131498,3.18433179,108500.0,108490.0,0.50150114]
[1760891131695,3.30001179,108500.0,108490.0,0.50150114]
[1760891132185,3.31726068,108500.0,108490.0,0.46531886]
[1760891132459,3.31725424,108500.0,108490.0,0.43760835]
[1760891132696,3.31725424,108500.0,108490.0,0.43775612]
[1760891133386,3.31725424,108500.0,108490.0,0.00014777]
[1760891133619,3.31725424,108500.0,108490.0,0.43775612]
[1760891135025,3.31725424,108500.0,108490.0,0.45911365]
[1760891135247,3.31725424,108500.0,108490.0,0.43775612]
[1760891136168,3.65725424,108500.0,108490.0,0.43775612]
[1760891137029,3.65725424,108500.0,108490.0,0.00014777]
[1760891137662,3.65725424,108500.0,108490.0,0.43775612]
[1760891139241,3.64001179,108500.0,108490.0,0.43775612]
[1760891139939,3.64161744,108500.0,108490.0,0.43775612]
[1760891141369,3.65883385,108500.0,108490.0,0.43775612]
[1760891142217,3.65883545,108500.0,108490.0,0.43775612]
[1760891142994,3.65883628,108500.0,108490.0,0.43775612]
[1760891144793,3.65883628,108500.0,108490.0,0.43805619]
[1760891147845,3.54315628,108500.0,108490.0,0.43805619]
[1760891148046,3.30001179,108500.0,108490.0,0.62240497]
[1760891148250,0.34,108500.0,108490.0,0.62240497]
[1760891148490,0.34,108500.0,108490.0,0.65858725]
[1760891148712,0.45568,108500.0,108490.0,0.65858725]
[1760891148849,0.45568,108500.0,108490.0,0.68629832]
[1760891149040,0.11568,108500.0,108490.0,0.68629832]
[1760891150158,0.11568,108500.0,108490.0,0.68729832]
[1760891150994,3.0,108510.0,108500.0,0.18432968]
[1760891151195,3.2999948,108510.0,108500.0,0.6222381]
[1760891151558,3.2999948,108510.0,108500.0,0.43790842]
[1760891152226,3.3172352,108510.0,108490.0,0.3962899]
[1760891152430,3.0,108500.0,108490.0,0.3962899]
[1760891153656,3.0,108500.0,108490.0,0.83519832]
[1760891154614,2.79866479,108500.0,108490.0,0.83519832]
[1760891154815,3.0,108500.0,108490.0,0.83519832]
[1760891157137,0.2999948,108510.0,108500.0,0.18433179]
[1760891157138,0.11568,108510.0,108500.0,0.18433179]
[1760891157315,0.11568,108510.0,108500.0,0.62224021]
[1760891158019,0.2999948,108510.0,108500.0,0.62224021]
[1760891158401,0.11568,108510.0,108500.0,0.62224021]
[1760891159228,0.53386414,108520.0,108500.0,0.62224021]
[1760891159406,0.11568,108510.0,108500.0,0.18433179]
[1760891159809,3.0,108510.0,108500.0,0.18433179]
[1760891160013,0.11568,108510.0,108500.0,0.18433179]
[1760891160221,0.2999948,108510.0,108500.0,0.18433179]
[1760891160683,0.2999948,108510.0,108500.0,0.62224021]
[1760891161534,0.2999948,108510.0,108500.0,0.64994982]
[1760891161864,0.2999948,108510.0,108500.0,0.46561803]
[1760891165392,0.2999948,108510.0,108500.0,0.43790842]
[1760891168638,0.2999948,108510.0,108500.0,0.46561803]
[1760891169918,0.2999948,108510.0,108500.0,0.02770961]
[1760891170119,0.2999948,108510.0,108500.0,0.46561803]
[1760891172145,0.31725853,108510.0,108500.0,0.46561803]
[1760891176507,0.31727289,108510.0,108500.0,0.46561803]
[1760891176670,0.31727289,108510.0,108500.0,0.48697556]
[1760891176878,0.31727289,108510.0,108500.0,0.46561803]
[1760891183170,0.31727289,108510.0,108500.0,0.02770961]
[1760891183500,0.31727289,108510.0,108500.0,0.46561803]
[1760891185428,0.31727289,108510.0,108500.0,0.02770961]
[1760891185560,0.31727289,108510.0,108500.0,0.46561803]
[1760891185959,0.31727289,108510.0,108500.0,0.02770961]
[1760891186186,0.31727289,108510.0,108500.0,0.46561803]
[1760891190338,0.31727289,108510.0,108500.0,0.02770961]
[1760891190526,0.31727289,108510.0,108500.0,0.46561803]
[1760891191624,0.31727289,108510.0,108500.0,0.64994982]
[1760891195974,0.27776261,108510.0,108500.0,0.64994982]
[1760891199083,0.10689863,108510.0,108500.0,0.64994982]
[1760891199434,0.29121343,108510.0,108500.0,0.64994982]
[1760891200379,0.19386414,108520.0,108500.0,0.64994982]
[1760891200380,0.00956632,108520.0,108500.0,0.64994982]
[1760891200590,0.00899936,108520.0,108510.0,1.0663312]